bitfinex/quotes_ETHUSD_20220113
["timestamp","ask_amount","ask_price","bid_price","bid_amount"]
[1642077863456,6.00346287,3360.8,3360.7,0.00341054]
[1642077863900,6.00346287,3360.8,3360.4,1.48829]
[1642077864100,1.22574083,3360.5,3360.4,1.48829]
[1642077864502,1.22574083,3360.5,3360.2,0.74405]
[1642077865003,1.52574083,3360.5,3360.3,0.00227369]
[1642077865704,1.1700545,3360.6,3360.3,0.00227369]
[1642077865906,0.7440545,3360.6,3360.3,0.00227369]
[1642077867004,0.3,3360.5,3360.3,0.00227369]
[1642077876762,0.3,3360.5,3360.3,2.56011693]
[1642077877159,0.3,3360.5,3360.4,1.00170527]
[1642077877359,0.3,3360.5,3360.4,0.00170527]
[1642077877959,0.3,3360.5,3360.4,2.55954851]
[1642077878158,0.3,3360.5,3360.4,3.55954851]
[1642077886307,0.7440545,3360.6,3360.4,3.55954851]
[1642077886709,0.7440545,3360.6,3360.5,1.00113685]
[1642077887606,0.7440545,3360.6,3360.5,3.55898009]
[1642077887810,0.7440545,3360.6,3360.5,2.50898009]
[1642077888007,0.59526266,3360.6,3360.5,3.50898009]
[1642077888208,0.89526266,3360.6,3360.5,3.50898009]
[1642077889862,0.74647082,3360.6,3360.5,3.50898009]
[1642077892460,0.3,3360.6,3360.5,3.50898009]
[1642077892858,1.7881089,3360.7,3360.5,3.50898009]
[1642077893059,1.7881089,3360.7,3360.6,1.0]
[1642077893361,1.78924575,3360.7,3360.6,1.0]
[1642077893795,0.30113685,3360.7,3360.6,1.0]
[1642077894197,0.30113685,3360.7,3360.4,2.23544784]
[1642077894198,0.7439607,3360.6,3360.4,2.23544784]
[1642077894597,0.3,3360.5,3360.4,2.23544784]
[1642077894798,0.3,3360.5,3360.4,1.49141784]
[1642077895696,0.3,3360.5,3360.3,1.0]
[1642077895897,1.0439869,3360.5,3360.3,1.0]
[1642077897201,1.0439869,3360.5,3360.3,3.23215902]
[1642077898451,1.0439869,3360.5,3360.3,3.97608902]
[1642077898654,1.0439869,3360.5,3360.3,3.23215902]
[1642077899454,1.0439869,3360.5,3360.4,2.23215902]
[1642077901307,1.0439869,3360.5,3360.1,6.89642032]
[1642077901308,1.3439869,3360.5,3360.1,6.89642032]
[1642077901508,0.7441809,3360.3,3360.1,6.89642032]
[1642077901706,0.7441809,3360.3,3360.2,0.00170527]
[1642077902306,1.4883609,3360.3,3360.1,0.00227369]
[1642077902906,1.4883609,3360.3,3360.1,1.5003475]
[1642077903407,0.7441809,3360.3,3360.1,1.5003475]
[1642077905151,1.4883109,3360.3,3360.1,1.5003475]
[1642077905351,1.4883109,3360.3,3360.1,0.00227369]
[1642077905757,1.4883109,3360.3,3360.0,0.00284211]
[1642077906156,0.74414,3360.2,3360.0,0.00284211]
[1642077906360,0.7441507,3360.1,3360.0,0.00284211]
[1642077906957,1.0441507,3360.1,3360.0,0.00284211]
[1642077907558,1.0441507,3360.1,3359.8,0.00397896]
[1642077907761,0.7440842,3360.0,3359.8,0.00397896]
[1642077908364,0.7440842,3360.0,3359.9,2.55819999]
[1642077908599,1.7881684,3360.1,3359.9,3.55819999]
[1642077908801,1.7881684,3360.1,3359.9,3.56161053]
[1642077909001,1.7881684,3360.1,3360.0,1.00284211]
[1642077909400,2.5322436,3360.1,3360.0,1.00284211]
[1642077909601,2.5322436,3360.1,3360.0,3.61619815]
[1642077909802,2.5322436,3360.1,3360.0,2.6713542]
[1642077910100,2.5322436,3360.1,3360.0,3.6713542]
[1642077910400,2.5322436,3360.1,3360.0,2.6713542]
[1642077910600,2.5322436,3360.1,3360.0,3.6713542]
[1642077910801,2.5322436,3360.1,3360.0,2.6713542]
[1642077911004,2.5322436,3360.1,3360.0,3.6713542]
[1642077914653,5.5322436,3360.1,3360.0,3.6713542]
[1642077916306,5.5322436,3360.1,3360.0,2.6713542]
[1642077921954,5.5322436,3360.1,3360.0,4.16662747]
[1642077924103,5.5322436,3360.1,3360.0,2.6713542]
[1642077924499,5.5322436,3360.1,3359.8,2.24553796]
[1642077924703,7.020707,3360.1,3359.9,1.0]
[1642077924899,1.34355259,3360.0,3359.8,2.24553796]
[1642077925099,1.34355259,3360.0,3359.8,0.74417]
[1642077925700,7.020707,3360.1,3359.8,0.74417]
[1642077926504,7.020707,3360.1,3359.9,1.49587937]
[1642077927105,2.0320099,3360.0,3359.9,1.49587937]
[1642077927559,2.0320099,3360.0,3359.9,2.49587937]
[1642077927755,2.0320099,3360.0,3359.7,0.74424]
[1642077927954,2.776254,3360.0,3359.7,0.74424]
[1642077928155,0.74425,3359.9,3359.7,0.74424]
[1642077928755,2.07104831,3359.9,3359.7,0.74424]
[1642077929555,1.32679831,3359.9,3359.7,0.74424]
[1642077930755,2.07104831,3359.9,3359.7,0.74424]
[1642077930955,2.07104831,3359.9,3359.5,1.48835]
[1642077930956,0.7442566,3359.8,3359.5,0.74427]
[1642077931207,3.34736382,3359.8,3359.4,1.0]
[1642077931422,3.34736382,3359.8,3359.6,0.00113685]
[1642077931610,0.74426,3359.8,3359.5,0.00170527]
[1642077932011,0.74426,3359.8,3359.4,0.00227369]
[1642077932208,0.74426,3359.8,3359.4,0.74657369]
[1642077932408,2.59508686,3359.7,3359.4,0.74657369]
[1642077932608,1.48861,3359.7,3359.5,0.00170527]
[1642077932811,2.2328937,3359.7,3359.5,0.00170527]
[1642077933007,1.82145277,3359.6,3359.5,0.00170527]
[1642077933209,1.82145277,3359.6,3359.4,1.0]
[1642077933411,2.2328937,3359.7,3359.4,1.0]
[1642077933412,1.4885937,3359.7,3359.4,1.0]
[1642077933612,0.74435,3359.5,3359.3,3.7054]
[1642077933812,2.2330473,3359.5,3359.3,3.7054]
[1642077934013,1.4886973,3359.5,3359.0,4.72963185]
[1642077934213,1.4886973,3359.5,3359.2,1.0]
[1642077934411,1.4886973,3359.5,3359.0,4.72963185]
[1642077934412,1.4886973,3359.5,3359.1,0.00227369]
[1642077935152,3.7218047,3359.4,3359.1,0.74664369]
[1642077935555,2.9774347,3359.4,3359.2,0.00170527]
[1642077936761,2.2330947,3359.4,3359.2,0.00170527]
[1642077937361,2.2330947,3359.4,3359.2,1.49126756]
[1642077937761,2.2330947,3359.4,3359.3,0.00113685]
[1642077939015,2.2330947,3359.4,3359.2,0.00170527]
[1642077940816,2.2330947,3359.4,3359.2,3.03672418]
[1642077941015,2.2330947,3359.4,3359.3,1.94696969]
[1642077941223,2.2330947,3359.4,3359.3,2.94810654]
[1642077941422,2.2330947,3359.4,3359.3,1.94810654]
[1642077941620,2.2330947,3359.4,3359.3,2.94810654]
[1642077942022,1.1422,3359.9,3359.5,1.36898922]
[1642077942223,11.56952435,3360.3,3359.6,1.88644067]
[1642077942224,9.3747,3360.3,3359.6,1.88644067]
[1642077942460,0.74586197,3359.8,3359.6,1.88644067]
[1642077942659,0.74586197,3359.8,3359.6,2.88644067]
[1642077942857,0.7441567,3359.8,3359.7,1.84798423]
[1642077943055,0.7441567,3359.8,3359.7,2.84798423]
[1642077943257,0.74586197,3359.8,3359.7,1.0]
[1642077943757,0.74586197,3359.8,3359.6,2.48627324]
[1642077944157,0.00113685,3359.7,3359.6,2.48627324]
[1642077944358,0.00113685,3359.7,3359.6,5.11036096]
[1642077945360,0.00113685,3359.7,3359.6,3.62408772]
[1642077947215,0.00113685,3359.7,3359.6,5.86510957]
[1642077948715,0.00113685,3359.7,3359.6,3.62408772]
[1642077949314,0.00113685,3359.7,3359.6,5.86510957]
[1642077950854,4.02815795,3360.3,3359.9,1.4882197]
[1642077951055,4.06981,3360.5,3359.9,2.4882197]
[1642077951257,0.00170527,3360.0,3359.9,2.4882197]
[1642077951855,3.26967511,3360.6,3359.9,2.4882197]
[1642077952255,0.00284211,3360.5,3359.9,2.4882197]
[1642077952758,0.00227369,3360.4,3359.9,3.97349508]
[1642077953057,0.00170527,3360.3,3359.9,3.97349508]
[1642077953254,0.00170527,3360.3,3359.9,4.71759508]
[1642077953454,0.00113684,3360.2,3360.1,0.7440885]
[1642077954108,0.00113684,3360.2,3360.1,0.64062548]
[1642077954712,3.00113684,3360.2,3360.1,0.64062548]
[1642077959768,3.00113684,3360.2,3360.1,3.19935058]
[1642077960767,3.00113684,3360.2,3360.1,2.5587251]
[1642077961411,4.40953332,3360.2,3360.1,2.5587251]
[1642077961810,3.00113684,3360.2,3360.1,2.5587251]
[1642077962010,3.00113684,3360.2,3360.0,3.3029089]
[1642077962710,3.00113684,3360.2,3360.1,2.5587251]
[1642077965459,3.42713684,3360.2,3359.8,2.5587251]
[1642077965658,0.74424,3360.0,3359.8,2.5587251]
[1642077966259,0.74424,3360.0,3359.7,0.7442721]
[1642077966456,0.74424,3360.0,3359.7,2.2327386]
[1642077966656,4.91569684,3360.2,3359.8,0.00113685]
[1642077966657,3.42713684,3360.2,3359.8,0.00113685]
[1642077966857,4.17133684,3360.2,3359.8,0.00113685]
[1642077967257,4.17133684,3360.2,3359.6,0.0022737]
[1642077967457,4.17133684,3360.2,3359.9,0.744194]
[1642077968261,4.17133684,3360.2,3359.9,1.488414]
[1642077969105,3.42713684,3360.2,3359.9,1.488414]
[1642077973556,3.42713684,3360.2,3360.0,0.3]
[1642077973953,3.42713684,3360.2,3360.0,1.0441354]
[1642077975857,3.00113684,3360.2,3360.0,3.92166762]
[1642077976112,3.00113684,3360.2,3360.1,6.51566981]
[1642077976311,3.00113684,3360.2,3360.1,4.55]
[1642077976511,1.1892,3361.1,3360.2,3.35]
[1642077976711,1.1892,3361.1,3360.9,1.26953416]
[1642077976914,3.8989,3361.2,3361.0,1.36477627]
[1642077977114,0.43726937,3361.6,3361.0,1.36477627]
[1642077977313,0.00511581,3361.1,3361.0,1.36477627]
[1642077978116,0.00511581,3361.1,3361.0,2.10868627]
[1642077980459,0.00511581,3361.1,3361.0,2.85258667]
[1642077980860,0.00511581,3361.1,3361.0,3.15258667]
[1642077981663,0.00511581,3361.1,3361.0,5.71064996]
[1642077983064,0.00511581,3361.1,3361.0,6.71064996]
[1642077983464,0.00511581,3361.1,3361.0,8.60661079]
[1642077983704,0.00511581,3361.1,3361.0,6.71064996]
[1642077984106,0.00511581,3361.1,3361.0,8.60098453]
[1642077984906,0.00511581,3361.1,3361.0,8.59043556]
[1642077985504,0.00511581,3361.1,3361.0,8.58454444]
[1642077985704,3.00511581,3361.1,3361.0,6.71064996]
[1642077986105,3.00511581,3361.1,3361.0,8.59718901]
[1642077986310,3.00511581,3361.1,3361.0,6.71064996]
[1642077987110,3.00511581,3361.1,3361.0,8.61299491]
[1642077987362,3.00511581,3361.1,3361.0,6.71064996]
[1642077988757,3.00511581,3361.1,3361.0,2.55806329]
[1642077992815,3.00511581,3361.1,3361.0,2.85806329]
[1642077993814,3.00511581,3361.1,3361.0,2.85606329]
[1642077994870,2.00511581,3361.1,3361.0,2.55806329]
[1642077995862,2.00511581,3361.1,3361.0,2.85806329]
[1642077998709,2.00511581,3361.1,3361.0,3.15806329]
[1642077999612,2.00511581,3361.1,3361.0,2.85806329]
[1642078001817,2.00511581,3361.1,3361.0,3.15806329]
[1642078007817,2.00511581,3361.1,3361.0,2.85806329]
[1642078008116,2.00511581,3361.1,3361.0,2.55806329]
[1642078008117,2.43111581,3361.1,3361.0,2.55806329]
[1642078008319,5.71234422,3361.1,3361.0,2.55806329]
[1642078008918,8.21234422,3361.1,3361.0,2.55806329]
[1642078009217,8.21234422,3361.1,3360.0,1.48527538]
[1642078009218,8.21234422,3361.1,3360.7,2.55806329]
[1642078009619,0.74415,3360.9,3360.8,0.00170527]
[1642078009874,3.1708053,3360.9,3360.8,0.00170527]
[1642078010672,3.1708053,3360.9,3360.4,0.74808756]
[1642078010969,0.74409,3360.6,3360.5,0.00341054]
[1642078011174,1.17009,3360.6,3360.5,0.00341054]
[1642078012977,1.17009,3360.6,3360.5,2.56147383]
[1642078013616,1.17009,3360.6,3360.5,2.86147383]
[1642078014014,0.426,3360.6,3360.5,2.86147383]
[1642078014211,2.43111581,3361.1,3360.5,2.86147383]
[1642078014412,4.30271054,3361.1,3360.7,1.4880187]
[1642078014612,2.43111581,3361.1,3360.7,1.4880187]
[1642078014812,2.43111581,3361.1,3360.7,0.74401]
[1642078015217,1.488,3361.0,3360.7,0.74401]
[1642078015615,1.488,3361.0,3360.8,2.55806329]
[1642078016025,0.744,3361.0,3360.9,0.00113684]
[1642078016224,2.43111581,3361.1,3360.9,0.74510684]
[1642078016425,3.17511581,3361.1,3360.9,0.74510684]
[1642078016723,3.17511581,3361.1,3360.9,0.00113684]
[1642078017375,3.17511581,3361.1,3361.0,2.55806329]
[1642078017565,3.91912581,3361.1,3361.0,2.55806329]
[1642078018165,5.80357505,3361.1,3361.0,2.55806329]
[1642078018368,2.00511581,3361.1,3361.0,2.55806329]
[1642078018568,2.00511581,3361.1,3361.0,2.85806329]
[1642078019170,2.00511581,3361.1,3360.9,0.74506684]
[1642078019368,2.00511581,3361.1,3360.9,1.78898944]
[1642078019568,1.95511581,3361.1,3360.9,2.78898944]
[1642078019769,1.95511581,3361.1,3360.9,1.78898944]
[1642078020171,1.95511581,3361.1,3361.0,2.55806329]
[1642078020970,1.95511581,3361.1,3361.0,3.66608635]
[1642078022619,1.95511581,3361.1,3361.0,2.55806329]
[1642078024218,1.95511581,3361.1,3361.0,3.55806329]
[1642078027978,1.95511581,3361.1,3361.0,2.55806329]
[1642078028171,1.95511581,3361.1,3361.0,2.85806329]
[1642078029429,1.95511581,3361.1,3361.0,2.55806329]
[1642078029631,1.95511581,3361.1,3361.0,2.85806329]
[1642078029931,1.95511581,3361.1,3361.0,2.55806329]
[1642078031836,1.95511581,3361.1,3361.0,2.85806329]
[1642078032883,1.95511581,3361.1,3361.0,2.55806329]
[1642078033887,1.95511581,3361.1,3361.0,2.85806329]
[1642078043077,2.62571,3361.4,3361.0,2.85806329]
[1642078043078,3.2856,3362.0,3361.1,6.7]
[1642078043280,5.838,3362.3,3361.5,0.7438312]
[1642078043281,6.27592297,3362.3,3361.5,0.7438312]
[1642078043483,0.43792297,3362.3,3361.4,2.0]
[1642078043724,5.1254,3362.8,3361.4,2.6]
[1642078044121,0.00909478,3362.7,3362.0,1.4677674]
[1642078044322,0.00909478,3362.7,3362.3,0.7435566]
[1642078044523,0.00852636,3362.6,3362.3,1.6318566]
[1642078044727,0.00852636,3362.6,3362.4,0.3]
[1642078044923,2.3832,3363.4,3362.4,0.3]
[1642078044924,0.00795793,3362.5,3362.4,0.3]
[1642078045725,0.00795793,3362.5,3362.4,1.787032]
[1642078046129,0.00795793,3362.5,3362.4,8.537032]
[1642078046327,3.00795793,3362.5,3362.4,3.087032]
[1642078046527,3.00795793,3362.5,3362.4,10.70672087]
[1642078047371,0.00795793,3362.5,3362.4,10.70672087]
[1642078047568,6.22817793,3363.7,3362.5,3.65]
[1642078047766,6.22817793,3363.7,3362.6,2.1452275]
[1642078047968,0.00625266,3363.6,3363.3,0.74343]
[1642078048372,0.01209472,3363.9,3363.3,0.74343]
[1642078048373,0.00568424,3363.5,3363.3,1.04343]
[1642078048568,0.00568424,3363.5,3363.4,0.3]
[1642078048772,0.4357644,3363.9,3363.4,1.78510631]
[1642078049071,0.00738951,3363.8,3363.4,2.82848161]
[1642078049573,0.00682108,3363.7,3363.5,0.74338]
[1642078049974,0.00625266,3363.6,3363.5,1.04338]
[1642078050371,0.00625266,3363.6,3363.5,1.34338]
[1642078051433,0.00625266,3363.6,3363.5,2.34338]
[1642078051627,0.00625266,3363.6,3363.5,1.34338]
[1642078058617,0.00625266,3363.6,3363.5,3.24873605]
[1642078058818,0.00625266,3363.6,3363.5,1.34338]
[1642078060020,0.00625266,3363.6,3363.5,3.25444719]
[1642078060718,0.00625266,3363.6,3363.5,2.34338]
[1642078060920,0.00625266,3363.6,3363.5,4.24447555]
[1642078061120,4.85342266,3364.5,3363.5,4.24447555]
[1642078061326,4.11015266,3364.5,3364.1,0.74323]
[1642078061526,0.00454739,3364.4,3364.1,0.74323]
[1642078061732,6.49833,3364.3,3362.6,3.9078]
[1642078061927,2.0,3364.2,3361.7,1.48527538]
[1642078062126,2.0,3364.2,3363.3,0.00170527]
[1642078062127,0.01281725,3363.6,3363.3,0.00170527]
[1642078062385,0.426,3363.5,3363.3,0.00170527]
[1642078062575,8.7,3363.4,3363.3,0.00170527]
[1642078062775,10.28496773,3363.4,3363.3,0.00170527]
[1642078063074,10.28496773,3363.4,3362.7,0.00511581]
[1642078063476,1.48718,3363.3,3362.7,0.00511581]
[1642078063673,0.426,3363.2,3362.2,2.56456161]
[1642078063875,0.74359,3363.0,3362.3,0.0073895]
[1642078064074,0.426,3362.9,3362.3,0.0073895]
[1642078064277,0.426,3362.8,3362.3,0.0073895]
[1642078064473,0.426,3362.8,3362.5,1.47341735]
[1642078064676,0.426,3362.8,3362.3,0.0073895]
[1642078064677,2.63905369,3362.7,3362.3,0.0073895]
[1642078064877,0.74364,3362.7,3362.6,0.00568423]
[1642078065074,0.74364,3362.7,3362.0,0.30909477]
[1642078065275,0.74364,3362.7,3361.9,0.0096632]
[1642078065475,0.74364,3362.7,3362.1,0.00852635]
[1642078065675,0.74364,3362.7,3362.4,1.33808794]
[1642078066116,0.74364,3362.7,3362.5,0.00625266]
[1642078067923,3.74364,3362.7,3362.5,0.00625266]
[1642078070369,3.49364,3362.7,3362.5,0.00625266]
[1642078070966,0.74366,3362.6,3362.5,0.00625266]
[1642078071571,3.49364,3362.7,3362.5,0.00625266]
[1642078072177,3.0,3362.7,3362.5,0.00625266]
[1642078073626,3.0,3362.7,3362.4,3.42528574]
[1642078073627,0.4936383,3362.5,3362.4,3.42528574]
[1642078074227,3.0,3362.7,3362.4,3.12528574]
[1642078074428,3.0,3362.7,3362.5,0.3]
[1642078074629,3.0,3362.7,3362.5,0.6]
[1642078075530,3.0,3362.7,3362.4,2.82528574]
[1642078075932,6.0,3362.7,3362.4,2.82528574]
[1642078076136,0.02756931,3362.6,3362.4,2.53402505]
[1642078076338,0.02756931,3362.6,3362.4,0.7436]
[1642078076537,6.0,3362.7,3361.9,1.48739]
[1642078076740,0.20856526,3362.4,3361.9,1.48739]
[1642078077037,0.20856526,3362.4,3362.0,0.00284211]
[1642078077238,6.426,3362.7,3362.0,0.30284211]
[1642078077470,6.426,3362.7,3361.9,1.78739]
[1642078077471,0.19700118,3362.0,3361.9,1.78739]
[1642078077672,0.19700118,3362.0,3361.9,3.29855112]
[1642078078069,0.426,3362.3,3361.9,3.29855112]
[1642078078268,0.426,3362.3,3361.9,1.81116112]
[1642078078469,0.00113684,3362.2,3361.9,2.85698906]
[1642078078868,1.51045534,3362.2,3361.9,2.85698906]
[1642078079270,1.51045534,3362.2,3361.9,0.10009483]
[1642078079472,1.51045534,3362.2,3361.8,4.55275]
[1642078079672,1.51045534,3362.2,3361.7,1.48739]
[1642078079673,2.25421534,3362.2,3361.7,1.48739]
[1642078079872,0.29756148,3361.9,3361.7,1.48739]
[1642078080075,0.29756148,3361.9,3361.8,0.00113685]
[1642078080473,0.426,3361.9,3361.8,0.00113685]
[1642078080673,0.4987544,3361.8,3361.3,3.9585]
[1642078080874,0.74387,3361.7,3361.3,3.9585]
[1642078081128,1.30690358,3361.5,3361.4,0.00227369]
[1642078081332,0.74387,3361.7,3361.4,0.00227369]
[1642078081531,0.74387,3361.7,3361.4,0.74611369]
[1642078081731,1.16985,3361.8,3361.4,0.74611369]
[1642078081732,0.04253443,3361.6,3361.4,0.74611369]
[1642078081931,0.03519402,3361.7,3361.5,0.00170527]
[1642078082331,0.49823955,3361.5,3361.4,3.30119777]
[1642078082932,1.16985,3361.8,3361.4,3.30119777]
[1642078083134,1.16985,3361.8,3361.4,2.85735777]
[1642078083135,0.74387,3361.7,3361.4,2.85735777]
[1642078083338,0.74500684,3361.7,3361.4,2.85735777]
[1642078084034,0.74500684,3361.7,3361.1,0.27639994]
[1642078084035,0.74500684,3361.7,3361.5,2.85735777]
[1642078084235,0.426,3361.6,3361.5,2.05763028]
[1642078084897,0.426,3361.6,3361.5,1.58440895]
[1642078085292,0.426,3361.6,3361.5,1.55792046]
[1642078085888,0.426,3361.6,3361.5,1.08470214]
[1642078086494,0.426,3361.6,3361.5,1.05821404]
[1642078087394,0.426,3361.6,3361.5,0.76002638]
[1642078087596,3.426,3361.6,3361.5,0.76002638]
[1642078087895,3.426,3361.6,3361.5,0.55827069]
[1642078088493,4.16989,3361.6,3361.5,0.26008747]
[1642078089132,4.16989,3361.6,3361.4,0.3]
[1642078089534,4.16989,3361.6,3361.4,0.00180347]
[1642078089735,4.16989,3361.6,3361.3,0.74386]
[1642078090136,0.20177371,3361.4,3361.3,0.74386]
[1642078090538,0.20177371,3361.4,3361.3,0.74499685]
[1642078090736,4.16988,3361.6,3361.3,0.74499685]
[1642078091340,3.426,3361.6,3361.4,0.3]
[1642078092037,3.426,3361.6,3361.4,2.232e-05]
[1642078092238,3.426,3361.6,3361.3,1.28883211]
[1642078092687,0.19998512,3361.4,3361.3,1.28883211]
[1642078092889,0.19998512,3361.4,3361.3,0.74494235]
[1642078093090,3.426,3361.6,3361.3,0.74494235]
[1642078093489,4.16988,3361.6,3361.3,0.99120589]
[1642078094090,4.16988,3361.6,3361.3,1.29120589]
[1642078094292,4.16988,3361.6,3361.4,0.3]
[1642078094493,4.91378,3361.6,3361.4,0.3]
[1642078094891,0.19757462,3361.4,3361.3,1.04494235]
[1642078095293,4.91378,3361.6,3361.3,0.00113685]
[1642078095594,4.91378,3361.6,3361.2,0.30170527]
[1642078095793,4.91378,3361.6,3361.2,0.00170527]
[1642078095992,1.29372105,3361.3,3361.2,0.00170527]
[1642078096226,1.29372105,3361.3,3361.1,0.3022737]
[1642078096627,0.49826349,3361.2,3361.1,0.3]
[1642078097030,1.29372105,3361.3,3361.1,0.3]
[1642078097229,1.29372105,3361.3,3361.1,1.0439285]
[1642078097630,1.29372105,3361.3,3361.1,0.3]
[1642078097828,0.426,3361.2,3361.1,0.3]
[1642078098029,0.74401,3361.1,3360.9,0.3]
[1642078098234,1.86988768,3361.1,3360.8,4.0024]
[1642078098431,2.36963922,3361.1,3361.0,0.00113685]
[1642078098829,1.24376154,3361.1,3361.0,0.00113685]
[1642078099030,1.24376154,3361.1,3360.7,1.7879411]
[1642078099031,0.74401,3361.1,3360.8,0.0022737]
[1642078099433,0.74401,3361.1,3360.9,0.7440105]
[1642078099434,0.49975154,3361.0,3360.9,0.7440105]
[1642078099869,3.40214,3361.2,3360.9,1.04571577]
[1642078100271,0.74405,3361.1,3360.9,0.54596423]
[1642078100675,0.74405,3361.1,3360.9,0.30170527]
[1642078100874,0.19828729,3360.9,3360.7,0.7440389]
[1642078101275,0.74405,3361.1,3360.7,0.7440389]
[1642078101876,1.48805,3361.1,3360.8,0.7439622]
[1642078102076,1.16995,3361.2,3360.8,0.7439622]
[1642078102278,1.16995,3361.2,3360.9,0.3]
[1642078102479,0.00113684,3361.1,3360.9,0.3]
[1642078102678,0.1997709,3360.8,3360.7,1.3440389]
[1642078103079,0.1997709,3360.8,3360.7,1.34517575]
[1642078103278,0.00113684,3361.1,3360.9,0.743945]
[1642078104318,0.00113684,3361.1,3360.9,1.043945]
[1642078104519,0.00113684,3361.1,3360.9,0.54417857]
[1642078105218,0.00113684,3361.1,3360.9,1.28812857]
[1642078105418,0.426,3361.0,3360.7,0.30113685]
[1642078105618,0.85986209,3360.9,3360.7,0.30113685]
[1642078105819,0.426,3360.8,3360.7,0.30113685]
[1642078106423,0.92599256,3360.8,3360.7,0.30113685]
[1642078106823,0.92599256,3360.8,3360.7,2.16537927]
[1642078107022,0.00113684,3361.1,3360.7,3.16537927]
[1642078107222,0.00113684,3361.1,3360.7,3.20425831]
[1642078107473,0.00113684,3361.1,3360.7,1.30113685]
[1642078107675,0.00113684,3361.1,3360.9,0.74377]
[1642078107875,0.00113684,3361.1,3360.9,1.34377]
[1642078108074,0.00113684,3361.1,3360.9,2.08754]
[1642078108473,0.00113684,3361.1,3360.9,1.34377]
[1642078108677,0.00113684,3361.1,3360.9,2.0875408]
[1642078109279,3.0,3361.6,3360.9,1.3437708]
[1642078109477,3.0,3361.6,3361.2,2.2315497]
[1642078109678,0.0022737,3361.5,3361.3,0.3]
[1642078110080,0.00170528,3361.4,3361.3,0.7438499]
[1642078110280,0.00170528,3361.4,3361.2,1.58779516]
[1642078110678,0.00113685,3361.3,3361.2,1.58779516]
[1642078111126,0.29871604,3361.3,3361.2,1.58779516]
[1642078111330,0.29871604,3361.3,3361.2,1.88779516]
[1642078111725,0.00113685,3361.3,3361.2,0.6]
[1642078111924,0.50106086,3361.3,3361.2,0.6]
[1642078112124,0.50106086,3361.3,3361.1,3.8316433]
[1642078112328,0.50106086,3361.3,3361.1,2.8316433]
[1642078113025,1.24502086,3361.3,3361.1,2.8316433]
[1642078113424,1.24502086,3361.3,3361.1,2.0877]
[1642078113627,1.24502086,3361.3,3361.0,0.7439714]
[1642078113826,0.74509685,3361.3,3361.0,0.7439714]
[1642078114028,0.74401,3361.2,3361.0,0.7439714]
[1642078114226,1.48801,3361.2,3361.0,0.24404739]
[1642078114427,1.48801,3361.2,3360.7,0.00113685]
[1642078114626,0.74401,3361.2,3360.9,0.7440027]
[1642078114890,0.47320724,3361.0,3360.9,0.7440027]
[1642078115087,0.47320724,3361.0,3360.9,1.3440027]
[1642078115289,0.74401,3361.2,3360.9,1.34513954]
[1642078115891,0.426,3361.1,3360.9,1.58911698]
[1642078116092,0.426,3361.1,3360.9,1.28911698]
[1642078116296,0.426,3361.1,3360.9,0.54514698]
[1642078116496,1.437612,3361.0,3360.9,0.24753236]
[1642078116702,1.437612,3361.0,3360.9,0.00113684]
[1642078116897,0.20123809,3360.9,3360.7,1.4879303]
[1642078117099,1.91416,3360.8,3360.4,2.66255]
[1642078117304,1.95458,3360.8,3360.4,1.78805]
[1642078117498,1.95458,3360.8,3360.5,0.0022737]
[1642078117897,1.95458,3360.8,3360.4,0.00284212]
[1642078118098,1.48828,3360.7,3360.4,0.00284212]
[1642078118298,1.97118226,3360.6,3360.3,0.00341054]
[1642078118728,0.49980333,3360.4,3360.3,0.00341054]
[1642078119330,2.71542226,3360.6,3360.3,0.00341054]
[1642078119528,0.74414,3360.5,3360.3,0.24778721]
[1642078119828,3.476,3360.4,3360.3,0.24437667]
[1642078120030,3.476,3360.4,3359.8,2.71867538]
[1642078120031,6.54590481,3360.4,3359.8,1.48527538]
[1642078120229,7.19644805,3360.3,3359.8,1.48527538]
[1642078120429,4.2071244,3360.2,3359.9,0.0022737]
[1642078120631,11.279,3360.0,3359.9,0.0022737]
[1642078120831,12.4843,3360.0,3359.9,0.0022737]
[1642078121034,12.4843,3360.0,3359.7,0.00341054]
[1642078121434,31.50321,3360.0,3359.7,0.00341054]
[1642078121638,31.50321,3360.0,3359.6,0.18417538]
[1642078121639,6.7,3359.8,3359.6,0.18417538]
[1642078121838,6.7,3359.8,3358.3,5.12924425]
[1642078121839,8.18928,3359.6,3358.3,5.12924425]
[1642078122034,8.179,3359.2,3359.1,0.94242032]
[1642078122235,8.179,3359.2,3358.5,2.18877813]
[1642078122236,0.7446,3358.9,3358.5,2.18877813]
[1642078122475,0.426,3358.8,3358.5,2.18877813]
[1642078122675,5.06867633,3358.7,3358.6,0.00625266]
[1642078122877,6.5922238,3358.7,3358.6,0.00625266]
[1642078123475,9.6922238,3358.7,3358.6,0.00625266]
[1642078123675,9.6922238,3358.7,3358.3,0.00795793]
[1642078123877,0.74468,3358.5,3358.3,0.00795793]
[1642078124077,0.74468,3358.5,3358.0,0.74468]
[1642078124078,0.426,3358.4,3358.0,0.74468]
[1642078124275,0.426,3358.4,3358.1,1.05372178]
[1642078124679,0.426,3358.4,3358.2,0.00852636]
[1642078125077,0.426,3358.4,3358.2,0.75313636]
[1642078125276,0.426,3358.4,3358.3,0.3]
[1642078125477,0.426,3358.4,3358.3,0.30795793]
[1642078125677,0.426,3358.4,3358.3,0.25795793]
[1642078125881,1.49972337,3358.6,3358.3,1.74700033]
[1642078126146,1.0,3358.6,3358.3,1.74700033]
[1642078126340,1.0,3358.6,3358.4,0.00738951]
[1642078126539,0.426,3359.1,3358.4,0.00738951]
[1642078126740,0.426,3359.1,3358.7,0.74452]
[1642078126741,1.12561417,3358.9,3358.7,0.74452]
[1642078127143,1.12561417,3358.9,3358.8,0.00511581]
[1642078127342,1.12561417,3358.9,3358.7,0.74452]
[1642078127343,1.12561417,3358.9,3358.7,1.29441494]
[1642078127641,0.426,3358.8,3358.6,5.9468]
[1642078127841,0.00536121,3358.7,3358.6,5.9468]
[1642078128239,0.426,3358.8,3358.6,5.94793685]
[1642078128640,0.426,3358.8,3358.6,5.44810861]
[1642078128842,0.426,3358.8,3358.6,6.19261861]
[1642078129046,0.426,3358.8,3358.6,6.93711571]
[1642078129241,0.426,3358.8,3358.6,7.23927062]
[1642078129645,0.426,3358.8,3358.6,9.11568369]
[1642078129910,0.426,3359.3,3358.9,0.74442]
[1642078130106,0.426,3359.3,3359.0,1.4887217]
[1642078130311,0.426,3359.3,3359.0,1.7887217]